bitfinex/quotes_BTCUSD_20251124
["timestamp","ask_amount","ask_price","bid_price","bid_amount"]
[1763978553453,0.64248216,86141.0,86131.0,0.01886]
[1763978553877,0.323,86140.0,86131.0,0.01886]
[1763978556399,0.323,86140.0,86130.0,0.01886]
[1763978557161,0.96548216,86140.0,86130.0,0.01886]
[1763978557361,0.96548216,86140.0,86121.0,0.03677]
[1763978557362,0.02175377,86139.0,86121.0,0.03677]
[1763978557597,0.323,86131.0,86125.0,0.0175]
[1763978559571,0.323,86131.0,86125.0,0.0185]
[1763978560913,0.323,86131.0,86130.0,0.04173]
[1763978561096,0.23213405,86159.0,86130.0,0.04173]
[1763978561097,0.00144749,86160.0,86133.0,0.02423]
[1763978561307,0.00144749,86160.0,86159.0,0.02423]
[1763978561758,0.00144749,86160.0,86159.0,0.061]
[1763978562623,0.00149763,86160.0,86159.0,0.061]
[1763978562800,0.00149763,86160.0,86159.0,0.062]
[1763978563553,0.00149763,86160.0,86159.0,0.061]
[1763978563969,0.00149763,86160.0,86159.0,0.064]
[1763978564217,0.00020947,86170.0,86169.0,0.04042]
[1763978564423,0.00020947,86170.0,86169.0,0.07719]
[1763978564823,0.0005291,86170.0,86169.0,0.07719]
[1763978565622,0.0005291,86170.0,86169.0,0.07919]
[1763978566704,0.91820188,86200.0,86170.0,0.05210249]
[1763978566705,0.00147636,86200.0,86170.0,0.05210249]
[1763978566903,0.00147636,86200.0,86169.0,0.14127249]
[1763978566904,0.00159403,86200.0,86199.0,0.04296]
[1763978567307,0.00159403,86200.0,86199.0,0.07844]
[1763978567915,0.00259403,86200.0,86199.0,0.07844]
[1763978568296,0.00159403,86200.0,86199.0,0.07844]
[1763978569388,0.00159403,86200.0,86199.0,0.07944]
[1763978571794,0.00159403,86200.0,86199.0,0.07844]
[1763978575271,0.00159403,86200.0,86199.0,0.07944]
[1763978575395,0.00159403,86200.0,86199.0,0.07844]
[1763978575809,0.00159403,86200.0,86199.0,0.07944]
[1763978576410,0.02313335,86200.0,86199.0,0.07944]
[1763978576818,0.00159403,86200.0,86199.0,0.07944]
[1763978577043,0.00159403,86200.0,86199.0,0.08044]
[1763978577472,0.00255254,86200.0,86199.0,0.08044]
[1763978578769,0.00255254,86200.0,86199.0,0.10364212]
[1763978579426,0.02408612,86200.0,86199.0,0.25004212]
[1763978580535,0.00255254,86200.0,86199.0,0.25004212]
[1763978581080,0.00255254,86200.0,86199.0,0.22684]
[1763978583197,0.00255254,86200.0,86199.0,0.25004212]
[1763978583350,0.00255254,86200.0,86199.0,0.22684]
[1763978583965,0.00255254,86200.0,86199.0,0.26002212]
[1763978584171,0.00255254,86200.0,86199.0,0.23682]
[1763978588272,0.02414899,86200.0,86199.0,0.23682]
[1763978589325,0.0004,86220.0,86208.0,0.00998]
[1763978589558,0.0004,86220.0,86219.0,0.02296]
[1763978589559,0.00079207,86220.0,86219.0,0.02296]
[1763978590036,0.00143082,86220.0,86219.0,0.0948261]
[1763978590236,0.00143082,86220.0,86219.0,0.02296]
[1763978590554,0.00143082,86220.0,86219.0,0.05996]
[1763978591116,0.00143082,86220.0,86219.0,0.06096]
[1763978591303,0.00143082,86220.0,86219.0,0.05996]
[1763978592333,0.00143082,86220.0,86219.0,0.02296]
[1763978592736,0.00143082,86220.0,86219.0,0.05996]
[1763978594937,0.91712552,86230.0,86212.0,0.02319862]
[1763978594938,0.91712552,86230.0,86228.0,0.03985]
[1763978595134,0.00051755,86230.0,86229.0,0.02296]
[1763978595341,0.00051755,86230.0,86229.0,0.05996]
[1763978596818,0.04844991,86250.0,86229.0,0.06732]
[1763978597000,0.0004,86270.0,86249.0,0.03951]
[1763978597363,0.00051753,86260.0,86259.0,0.03946]
[1763978597748,0.00051753,86260.0,86259.0,0.07646]
[1763978598087,0.00051753,86260.0,86259.0,0.08110649]
[1763978599540,0.00051753,86260.0,86259.0,0.08310649]
[1763978599915,0.00051753,86260.0,86259.0,0.09208649]
[1763978600668,0.00179429,86260.0,86259.0,0.09208649]
[1763978600809,0.00179429,86260.0,86259.0,0.09108649]
[1763978601817,0.00179429,86260.0,86259.0,0.09208649]
[1763978602126,0.00179429,86260.0,86259.0,0.09308649]
[1763978603066,0.00179429,86260.0,86259.0,0.14518898]
[1763978603679,0.0004,86280.0,86269.0,0.03951]
[1763978603973,0.0004,86280.0,86279.0,0.1042594]
[1763978604134,0.0004,86280.0,86279.0,0.1412594]
[1763978605341,0.91712552,86310.0,86279.0,0.1412594]
[1763978605342,0.0004,86320.0,86309.0,0.03911]
[1763978605541,0.00051751,86320.0,86319.0,0.03946]
[1763978606566,0.00051751,86320.0,86319.0,0.0175]
[1763978606805,0.05887751,86320.0,86319.0,0.001]
[1763978607104,0.05887751,86320.0,86309.0,0.05098396]
[1763978607252,0.0166,86319.0,86309.0,0.01615]
[1763978607461,0.0166,86319.0,86294.0,0.037]
[1763978607462,0.323,86318.0,86294.0,0.037]
[1763978607827,0.323,86309.0,86298.0,0.03483784]
[1763978608160,0.323,86309.0,86295.0,0.01689]
[1763978608362,0.323,86309.0,86296.0,0.03483901]
[1763978608567,0.0166,86319.0,86296.0,0.07183901]
[1763978608766,0.323,86309.0,86296.0,0.07183901]
[1763978609074,0.323,86309.0,86297.0,0.037]
[1763978609898,0.0812994,86339.0,86297.0,0.037]
[1763978609899,0.323,86329.0,86308.0,0.03762]
[1763978610098,0.323,86329.0,86309.0,0.02296]
[1763978610099,0.323,86319.0,86309.0,0.02296]
[1763978610306,0.00156278,86309.0,86297.0,0.037]
[1763978610505,0.323,86309.0,86297.0,0.037]
[1763978610716,0.323,86309.0,86295.0,0.01689]
[1763978610717,0.323,86306.0,86298.0,0.03483618]
[1763978610923,0.323,86306.0,86275.0,0.01689]
[1763978610924,0.03982,86296.0,86275.0,0.01689]
[1763978611130,0.323,86284.0,86275.0,0.01689]
[1763978611535,0.01665,86283.0,86275.0,0.01689]
[1763978611796,0.323,86284.0,86275.0,0.01689]
[1763978612512,0.323,86284.0,86264.0,0.07184945]
[1763978612513,0.001,86283.0,86264.0,0.07184945]
[1763978612714,0.323,86277.0,86264.0,0.07184945]
[1763978612913,0.323,86277.0,86264.0,0.037]
[1763978613132,0.323,86277.0,86269.0,0.03683329]
[1763978613674,0.323,86277.0,86269.0,0.01365]
[1763978614379,0.002,86284.0,86276.0,0.02329]
[1763978614578,0.00111751,86284.0,86276.0,0.02329]
[1763978614725,0.00011751,86284.0,86276.0,0.02329]
[1763978615597,0.00111751,86284.0,86276.0,0.02329]
[1763978615826,0.00111751,86284.0,86270.0,0.05947303]
[1763978615827,0.00111751,86284.0,86283.0,0.04018]
[1763978616109,0.00211751,86284.0,86271.0,0.03629]
[1763978616244,0.00211751,86284.0,86272.0,0.02318249]
[1763978616652,0.00211751,86284.0,86283.0,0.03876]
[1763978617096,0.00211751,86284.0,86283.0,0.07505]
[1763978617273,0.00011751,86284.0,86283.0,0.07505]
[1763978617475,0.00111751,86284.0,86283.0,0.07505]
[1763978617810,0.00211751,86284.0,86283.0,0.07505]
[1763978618734,0.00211751,86284.0,86283.0,0.09822953]
[1763978618901,0.00011751,86284.0,86283.0,0.09822953]
[1763978619104,0.00011751,86284.0,86283.0,0.07505]
[1763978620567,0.00011751,86284.0,86283.0,0.03876]
[1763978621131,0.00011751,86284.0,86283.0,0.07505]
[1763978621334,0.00088318,86284.0,86283.0,0.07505]
[1763978622536,0.00088318,86284.0,86283.0,0.01547]
[1763978622925,0.00088318,86284.0,86283.0,0.03876]
[1763978623125,0.00088318,86284.0,86283.0,0.07505]
[1763978624360,0.00088318,86284.0,86283.0,0.03876]
[1763978624892,0.00088318,86284.0,86283.0,0.07505]
[1763978625209,0.00088318,86284.0,86283.0,0.01547]
[1763978625337,0.00088318,86284.0,86276.0,0.1464]
[1763978625338,0.02357318,86284.0,86276.0,0.1464]
[1763978625541,0.02280751,86284.0,86276.0,0.1464]
[1763978625759,0.00011751,86284.0,86277.0,0.02318114]
[1763978626503,0.00011751,86284.0,86283.0,0.03706]
[1763978626902,0.00011751,86284.0,86283.0,0.01398]
[1763978627333,0.00011751,86284.0,86274.0,0.0326]
[1763978627534,0.323,86283.0,86270.0,0.1464]
[1763978628618,0.323,86279.0,86271.0,0.05578276]
[1763978630066,0.323,86279.0,86278.0,0.02308]
[1763978630284,0.00011751,86284.0,86278.0,0.02308]
[1763978630491,0.00011751,86284.0,86283.0,0.01505]
[1763978630697,0.00011751,86284.0,86283.0,0.03813]
[1763978630911,0.00011751,86284.0,86283.0,0.07073]
[1763978631853,0.02331751,86284.0,86270.0,0.1464]
[1763978632074,0.323,86279.0,86271.0,0.05578276]
[1763978632495,0.323,86279.0,86272.0,0.0326]
[1763978632696,0.323,86279.0,86273.0,0.02318222]
[1763978632950,0.323,86279.0,86278.0,0.02308]
[1763978633176,0.00011751,86284.0,86278.0,0.02308]
[1763978633376,0.00011751,86284.0,86283.0,0.03813]
[1763978633796,0.00011751,86284.0,86283.0,0.09390953]
[1763978636234,0.00088318,86284.0,86283.0,0.09390953]
[1763978637429,0.00088318,86284.0,86283.0,0.07073]
[1763978640150,0.54555285,86293.0,86283.0,0.07073]
[1763978640349,0.54555285,86293.0,86283.0,0.03813]
[1763978640350,0.02172768,86292.0,86283.0,0.03813]
[1763978640549,0.02172768,86291.0,86284.0,0.05577926]
[1763978640773,0.54555285,86300.0,86284.0,0.05577926]
[1763978640978,0.54555285,86294.0,86283.0,0.01505]
[1763978641181,0.02172677,86293.0,86283.0,0.01505]
[1763978641382,0.02172677,86292.0,86283.0,0.01505]
[1763978641659,0.001,86293.0,86291.0,0.02308]
[1763978641795,0.03577,86320.0,86292.0,0.05568]
[1763978642006,0.02172357,86315.0,86304.0,0.01725]
[1763978642176,0.00039161,86316.0,86304.0,0.01725]
[1763978642177,0.02172357,86314.0,86304.0,0.01725]
[1763978642384,0.02172357,86313.0,86305.0,0.0326]
[1763978642583,0.00039161,86316.0,86305.0,0.0326]
[1763978642584,0.02172357,86312.0,86305.0,0.0326]
[1763978642844,0.00039161,86316.0,86311.0,0.02308]
[1763978642985,0.02171682,86315.0,86311.0,0.02308]
[1763978643191,0.02171682,86314.0,86304.0,0.01725]
[1763978643412,0.34471682,86313.0,86304.0,0.01725]
[1763978643740,0.02371682,86312.0,86304.0,0.01625]
[1763978643939,0.002,86312.0,86304.0,0.01625]
[1763978644146,0.323,86313.0,86304.0,0.01625]
[1763978644374,0.03774415,86312.0,86298.0,0.0173]
[1763978644493,0.03774415,86312.0,86293.0,0.01508]
[1763978644494,0.54555285,86308.0,86293.0,0.01508]
[1763978644692,0.54555285,86303.0,86293.0,0.01508]
[1763978645093,0.00813,86302.0,86293.0,0.01508]
[1763978645307,0.54555285,86303.0,86294.0,0.03448]
[1763978645887,0.02983812,86302.0,86293.0,0.01508]
[1763978646180,0.00025516,86292.0,86283.0,0.01505]
[1763978646371,0.02170812,86291.0,86284.0,0.02317926]
[1763978646545,0.02170812,86290.0,86284.0,0.02317926]
[1763978646870,0.02170812,86289.0,86283.0,0.01505]
[1763978647066,0.00025516,86292.0,86283.0,0.01505]
[1763978647067,0.02170812,86288.0,86283.0,0.01505]
[1763978647267,0.02170812,86287.0,86283.0,0.01505]
[1763978647417,0.02170812,86286.0,86283.0,0.01505]
[1763978647617,0.02170812,86285.0,86283.0,0.01505]
[1763978647837,0.02170812,86284.0,86283.0,0.01505]
[1763978648456,0.57753285,86293.0,86280.0,0.0173]
[1763978648664,0.03198,86292.0,86275.0,0.0173]
[1763978648882,0.54555285,86282.0,86276.0,0.02318141]
[1763978649302,0.54555285,86290.0,86281.0,0.0173]
[1763978649733,0.54555285,86290.0,86275.0,0.01741751]
[1763978650013,0.03198,86292.0,86275.0,0.01741751]
[1763978650014,0.54555285,86285.0,86275.0,0.01741751]
[1763978651016,0.323,86294.0,86275.0,0.01741751]
[1763978651234,0.323,86289.0,86276.0,0.03448]
[1763978651433,0.323,86289.0,86277.0,0.01864087]
[1763978652381,0.323,86289.0,86276.0,0.03448]
[1763978652743,0.323,86289.0,86277.0,0.02064712]
[1763978653079,0.323,86289.0,86276.0,0.03448]
[1763978653267,0.001,86294.0,86276.0,0.03448]
[1763978653464,0.54555285,86286.0,86276.0,0.03448]
[1763978654520,0.54555285,86286.0,86275.0,0.01741751]
[1763978654723,0.54555285,86286.0,86275.0,0.00011751]
[1763978654917,0.01236,86276.0,86275.0,0.00011751]
[1763978655671,0.06555,86276.0,86275.0,0.00011751]
[1763978656059,0.03357,86276.0,86275.0,0.00011751]
[1763978656467,0.06555,86276.0,86275.0,0.00011751]
[1763978657411,0.06655,86276.0,86275.0,0.00011751]
[1763978660080,0.06555,86276.0,86275.0,0.00011751]
[1763978660308,0.06655,86276.0,86275.0,0.00011751]
[1763978661581,0.06755,86276.0,86275.0,0.00011751]
[1763978663622,0.08921417,86276.0,86275.0,0.00011751]
[1763978663834,0.06755,86276.0,86275.0,0.00011751]
[1763978664239,0.08921015,86276.0,86275.0,0.00011751]
[1763978664535,0.06755,86276.0,86275.0,0.00011751]
[1763978666108,0.03557,86276.0,86275.0,0.00011751]
[1763978666337,0.002,86276.0,86275.0,0.00011751]
[1763978667036,0.001,86276.0,86275.0,0.00011751]
[1763978667469,0.001,86276.0,86275.0,0.02214751]
[1763978667673,0.001,86276.0,86275.0,0.05662751]
[1763978668633,0.323,86284.0,86275.0,0.05662751]
[1763978669367,0.323,86284.0,86275.0,0.00011751]
[1763978669368,0.02121,86276.0,86275.0,0.00011751]
[1763978669556,0.05319,86276.0,86275.0,0.00011751]
[1763978671321,0.01236,86283.0,86275.0,0.00011751]
[1763978674266,0.01236,86283.0,86275.0,0.00111751]
[1763978675839,0.02187,86276.0,86275.0,0.00111751]
[1763978676204,0.03407,86282.0,86275.0,0.00111751]
[1763978676405,0.01236,86283.0,86275.0,0.00111751]
[1763978676640,0.03407,86282.0,86275.0,0.00111751]
[1763978676903,0.03407,86282.0,86275.0,0.00011751]
[1763978678353,0.02172519,86281.0,86275.0,0.00011751]
[1763978678563,0.03407,86282.0,86275.0,0.00011751]
[1763978678768,0.02172626,86281.0,86275.0,0.00011751]
[1763978678982,0.04643,86283.0,86275.0,0.00011751]
[1763978679156,0.02172605,86282.0,86275.0,0.00011751]
[1763978679336,0.02172605,86281.0,86275.0,0.00011751]
[1763978679538,0.01236,86283.0,86275.0,0.00011751]
[1763978679880,0.02172832,86282.0,86275.0,0.00011751]
[1763978680076,0.01236,86283.0,86275.0,0.00011751]
[1763978680377,0.02172845,86282.0,86275.0,0.00011751]
[1763978680537,0.01236,86283.0,86275.0,0.00011751]
[1763978680875,0.0217311,86282.0,86275.0,0.00011751]
[1763978681177,0.01236,86283.0,86275.0,0.00011751]
[1763978681386,0.02173408,86282.0,86275.0,0.00011751]
[1763978681587,0.02173408,86281.0,86275.0,0.00011751]
[1763978681734,0.01236,86283.0,86275.0,0.00011751]
[1763978681936,0.05580408,86282.0,86275.0,0.00011751]
[1763978682226,0.02187,86276.0,86275.0,0.00011751]
[1763978682581,0.05594,86276.0,86275.0,0.00011751]
[1763978683929,0.07768229,86276.0,86275.0,0.00011751]
[1763978684135,0.07768229,86276.0,86275.0,0.00111751]
[1763978686618,0.07768229,86276.0,86275.0,0.00011751]
[1763978688108,0.07768932,86276.0,86275.0,0.00011751]
[1763978691149,0.04361932,86276.0,86275.0,0.00011751]
[1763978692609,0.07572932,86276.0,86275.0,0.00011751]
[1763978693340,0.02174932,86276.0,86275.0,0.00011751]
[1763978693705,0.02174932,86276.0,86275.0,0.01201751]
[1763978696031,0.02174932,86276.0,86275.0,0.01301751]
[1763978698225,0.02174932,86276.0,86275.0,0.00111751]
[1763978700391,0.04525932,86276.0,86275.0,0.00111751]
[1763978700588,0.07736932,86276.0,86275.0,0.00111751]
[1763978702045,0.07736932,86276.0,86275.0,0.00011751]
[1763978703648,0.04525932,86276.0,86275.0,0.00011751]
[1763978704252,0.07789932,86276.0,86275.0,0.00011751]
[1763978704598,0.02174932,86276.0,86275.0,0.01703751]
[1763978705527,0.02175943,86282.0,86275.0,0.01703751]
[1763978705733,0.02175943,86281.0,86275.0,0.01703751]
[1763978705933,0.02175943,86280.0,86275.0,0.01703751]
[1763978706265,0.02175943,86279.0,86275.0,0.01703751]
[1763978706608,0.01236,86283.0,86275.0,0.01703751]
[1763978706609,0.02175943,86278.0,86275.0,0.01803751]
[1763978706810,0.02175943,86277.0,86275.0,0.01703751]
[1763978707081,0.01236,86283.0,86275.0,0.01703751]
[1763978707082,0.02175943,86276.0,86275.0,0.01703751]
[1763978707283,0.02175943,86282.0,86275.0,0.00011751]
[1763978708770,0.02175943,86282.0,86275.0,0.00111751]
[1763978708990,0.02175943,86282.0,86275.0,0.00011751]
[1763978709409,0.02175943,86281.0,86275.0,0.03414751]
[1763978709608,0.02175943,86280.0,86275.0,0.03414751]
[1763978709809,0.20246591,86284.0,86275.0,0.03414751]
[1763978711262,0.20246591,86284.0,86283.0,0.02291]
[1763978711461,0.04077,86298.0,86283.0,0.02291]
[1763978711462,0.01371,86301.0,86283.0,0.02291]
[1763978711730,0.91449852,86300.0,86288.0,0.02291]
[1763978711941,0.323,86299.0,86288.0,0.02291]
[1763978712142,0.323,86299.0,86288.0,0.05694]
[1763978712369,0.91449852,86300.0,86288.0,0.02291]
[1763978712536,0.91449852,86300.0,86298.0,0.01692]
[1763978712695,0.01371,86305.0,86298.0,0.01692]
[1763978712696,0.323,86299.0,86298.0,0.01692]
[1763978712914,0.323,86299.0,86292.0,0.01692]
[1763978713088,0.01371,86305.0,86292.0,0.01692]
[1763978714509,0.323,86301.0,86292.0,0.01692]
[1763978714958,0.32,86301.0,86292.0,0.01692]
[1763978715878,0.00813,86300.0,86292.0,0.01692]
[1763978718244,0.00813,86300.0,86279.0,0.01692]
[1763978718245,0.02182,86293.0,86279.0,0.01692]
[1763978718589,0.91449852,86289.0,86277.0,0.03403]
[1763978718792,0.323,86288.0,86277.0,0.03403]
[1763978718999,0.35564,86288.0,86274.0,0.01692]
[1763978719437,0.35564,86288.0,86279.0,0.001]
[1763978719638,0.35564,86288.0,86287.0,0.03983]
[1763978719639,0.323,86288.0,86287.0,0.03983]
[1763978719767,0.00025513,86300.0,86287.0,0.03983]
[1763978719993,0.91449852,86310.0,86299.0,0.03983]
[1763978720441,0.91449852,86310.0,86300.0,0.03403]
[1763978720582,0.323,86309.0,86300.0,0.03403]
[1763978720799,0.91449852,86320.0,86308.0,0.02291]
[1763978721007,0.91449852,86320.0,86309.0,0.02291]
[1763978721226,0.0004,86330.0,86319.0,0.03983]
[1763978721432,0.0004,86330.0,86329.0,0.03983]
[1763978721796,0.00135634,86330.0,86329.0,0.03983]
[1763978721966,0.00174819,86330.0,86329.0,0.07386]
[1763978722712,0.00174819,86330.0,86329.0,0.07486]
[1763978724169,0.00174819,86330.0,86329.0,0.07586]
[1763978724578,0.00174819,86330.0,86329.0,0.07486]
[1763978724978,0.00174819,86330.0,86329.0,0.07586]
[1763978725325,0.00174819,86330.0,86329.0,0.07486]
[1763978725846,0.00174819,86330.0,86329.0,0.07586]
[1763978726250,0.00174819,86330.0,86329.0,0.07486]
[1763978726840,0.00174819,86330.0,86329.0,0.07686]
[1763978727036,0.00174819,86330.0,86329.0,0.08684]
[1763978727341,0.00174819,86330.0,86329.0,0.08484]
[1763978727550,0.00174819,86330.0,86329.0,0.07686]
[1763978727766,0.00174819,86330.0,86329.0,0.07586]
[1763978728115,0.00174819,86330.0,86329.0,0.07686]
[1763978728725,0.00174819,86330.0,86329.0,0.47686]
[1763978728928,0.00174819,86330.0,86329.0,0.07686]
[1763978731878,0.00174819,86330.0,86329.0,0.07586]
[1763978732102,0.00174819,86330.0,86329.0,0.002]
[1763978732284,0.00174819,86330.0,86329.0,0.003]
[1763978733353,0.00174819,86330.0,86329.0,0.001]
[1763978733541,0.02327518,86330.0,86329.0,0.001]
[1763978733885,0.02327518,86330.0,86311.0,0.03403]
[1763978734081,0.323,86328.0,86311.0,0.03403]
[1763978734386,0.00063764,86320.0,86311.0,0.03403]
[1763978734585,0.00063764,86320.0,86312.0,0.02317174]
[1763978734829,0.00063764,86320.0,86319.0,0.03965]
[1763978735248,0.00063764,86320.0,86319.0,0.07347]
[1763978736026,0.00063764,86320.0,86319.0,0.03965]
[1763978736246,0.00063764,86320.0,86319.0,0.01692]
[1763978736446,0.00063764,86320.0,86319.0,0.03965]
[1763978737574,0.00063764,86320.0,86319.0,0.07347]
[1763978740806,0.00063764,86320.0,86319.0,0.07447]
[1763978740993,0.00063764,86320.0,86319.0,0.07547]
[1763978742186,0.00063764,86320.0,86319.0,0.09863986]
[1763978742993,0.00063764,86320.0,86319.0,0.09763986]
[1763978743193,0.00063764,86320.0,86319.0,0.07347]
[1763978743393,0.00063764,86320.0,86319.0,0.07447]
[1763978743593,0.00063764,86320.0,86319.0,0.07647]
[1763978744048,0.00063764,86320.0,86319.0,0.01992]
[1763978744195,0.00063764,86320.0,86319.0,0.003]
[1763978744398,0.0222436,86320.0,86319.0,0.003]
[1763978744897,0.0222436,86320.0,86319.0,0.002]
[1763978745672,0.0222436,86320.0,86299.0,0.01692]
[1763978745868,0.323,86308.0,86292.0,0.01692]
[1763978746010,0.323,86301.0,86295.0,0.01674]
[1763978746212,0.02160596,86300.0,86295.0,0.01674]
[1763978746727,0.02160596,86300.0,86299.0,0.02201]
[1763978747566,0.02160596,86300.0,86295.0,0.01674]
[1763978747740,0.02160596,86299.0,86291.0,0.01674]
[1763978747940,0.02160596,86298.0,86291.0,0.01674]
[1763978748144,0.02160596,86297.0,86291.0,0.01674]
[1763978748690,0.02160596,86297.0,86296.0,0.01674]
[1763978748859,0.02160596,86297.0,86296.0,0.03875]
[1763978749461,0.02160596,86297.0,86296.0,0.07173]
[1763978749462,0.02260596,86297.0,86296.0,0.07173]
[1763978749661,0.02160596,86297.0,86296.0,0.07173]
[1763978750350,0.02260596,86297.0,86296.0,0.07173]
[1763978750738,0.02160596,86297.0,86296.0,0.07173]
[1763978753478,0.00039161,86298.0,86296.0,0.07173]
[1763978753724,0.00039161,86298.0,86297.0,0.05499]
[1763978753954,0.02201828,86298.0,86297.0,0.05499]
[1763978754355,0.00039161,86298.0,86297.0,0.05499]
[1763978756094,0.00039161,86298.0,86291.0,0.01674]
[1763978757410,0.02163289,86297.0,86291.0,0.01674]
[1763978757541,0.00039161,86298.0,86282.0,0.03298]
[1763978757778,0.323,86291.0,86282.0,0.03298]
[1763978758164,0.323,86291.0,86290.0,0.02201]
[1763978758574,0.323,86291.0,86290.0,0.05499]
[1763978759323,0.00039161,86298.0,86290.0,0.05499]
[1763978759463,0.00039161,86298.0,86297.0,0.03875]
[1763978760422,0.54511705,86307.0,86298.0,0.02201]
[1763978760720,0.10295961,86306.0,86286.0,0.01674]
[1763978760870,0.54511705,86296.0,86286.0,0.01674]
[1763978761072,0.02166021,86295.0,86286.0,0.04972]
[1763978761277,0.54511705,86296.0,86286.0,0.04972]
[1763978761491,0.54511705,86296.0,86295.0,0.02201]
[1763978761706,0.02166638,86296.0,86295.0,0.02201]
[1763978761902,0.01263654,86299.0,86295.0,0.05499]
[1763978762104,0.54511705,86305.0,86298.0,0.02201]
[1763978762325,0.3446664,86304.0,86298.0,0.02201]
[1763978762621,0.0216664,86303.0,86298.0,0.02201]
[1763978763045,0.0216664,86303.0,86302.0,0.02201]
[1763978763426,0.03394643,86303.0,86302.0,0.05499]
[1763978764081,0.03394643,86303.0,86302.0,0.02201]
[1763978764588,0.03394643,86303.0,86302.0,0.05482]
[1763978765084,0.03394643,86303.0,86294.0,0.03281]
[1763978765240,0.0216664,86302.0,86294.0,0.03281]
[1763978765784,0.0216664,86302.0,86301.0,0.02102]
[1763978766190,0.0216664,86302.0,86301.0,0.05383]
[1763978766397,0.33528003,86303.0,86301.0,0.05383]
[1763978766596,0.33528003,86303.0,86302.0,0.05383]
[1763978766794,0.03395433,86303.0,86302.0,0.05383]
[1763978767097,0.03395433,86303.0,86302.0,0.02102]
[1763978767534,0.03395433,86303.0,86296.0,0.03281]
[1763978767535,0.01228003,86303.0,86296.0,0.03281]
[1763978767659,0.02167699,86302.0,86289.0,0.03281]
[1763978768084,0.323,86298.0,86289.0,0.03281]
[1763978768500,0.323,86298.0,86260.0,0.15340187]
[1763978768501,0.323,86298.0,86274.0,0.03281]
[1763978768677,0.323,86288.0,86274.0,0.03281]
[1763978769484,0.323,86288.0,86273.0,0.01674]
[1763978769700,0.323,86288.0,86287.0,0.03695]
[1763978769910,0.323,86296.0,86287.0,0.03695]
[1763978770110,0.02168612,86295.0,86287.0,0.03695]
[1763978770353,0.02168612,86294.0,86287.0,0.03695]
[1763978770555,0.02168612,86293.0,86287.0,0.03695]
[1763978770701,0.323,86296.0,86287.0,0.03695]
[1763978770903,0.02169233,86295.0,86287.0,0.01593]
[1763978771108,0.02169233,86294.0,86287.0,0.01593]
[1763978771439,0.02169233,86293.0,86287.0,0.01593]
[1763978771639,0.02169233,86292.0,86287.0,0.01593]
[1763978771805,0.02169233,86291.0,86287.0,0.01593]
[1763978772003,0.02169233,86290.0,86287.0,0.01593]
[1763978772220,0.001,86295.0,86287.0,0.01593]
[1763978772424,0.02169968,86294.0,86287.0,0.01593]
[1763978772654,0.02169968,86293.0,86274.0,0.03281]
[1763978772803,0.323,86288.0,86274.0,0.03281]
[1763978773151,0.02169968,86287.0,86274.0,0.03281]
[1763978773342,0.54511705,86289.0,86274.0,0.03281]
[1763978773749,0.54511705,86289.0,86288.0,0.03695]
[1763978774130,0.54511705,86298.0,86288.0,0.03695]
[1763978774633,0.54511705,86298.0,86288.0,0.06976]
[1763978775258,0.323,86297.0,86288.0,0.06976]
[1763978776827,0.325,86297.0,86288.0,0.06976]
[1763978779158,0.17287146,86297.0,86288.0,0.06976]
[1763978781222,0.17287146,86297.0,86288.0,0.03695]
[1763978781423,0.17287146,86297.0,86273.0,0.01674]
[1763978781747,0.323,86288.0,86280.0,0.03281]
[1763978782102,0.323,86288.0,86287.0,0.02102]
[1763978784953,0.323,86296.0,86287.0,0.02102]
[1763978785159,0.02174421,86295.0,86287.0,0.02102]
[1763978785358,0.02174421,86294.0,86287.0,0.02102]
[1763978785565,0.02174421,86293.0,86287.0,0.02102]
[1763978785764,0.02174421,86292.0,86273.0,0.01674]
[1763978785967,0.02174421,86291.0,86280.0,0.03281]
[1763978786176,0.02174421,86290.0,86280.0,0.03281]
[1763978786376,0.02174421,86289.0,86280.0,0.03281]
[1763978786575,0.02174421,86288.0,86280.0,0.03281]
[1763978786780,0.02174421,86287.0,86280.0,0.03281]
[1763978786980,0.323,86296.0,86280.0,0.03281]
[1763978787321,0.02174445,86295.0,86280.0,0.03281]
[1763978787441,0.02174445,86294.0,86280.0,0.03281]
[1763978787640,0.02174445,86293.0,86280.0,0.03281]
[1763978787841,0.02174445,86292.0,86280.0,0.03281]
[1763978788041,0.323,86289.0,86280.0,0.03281]
[1763978788243,0.02174445,86288.0,86280.0,0.03281]
[1763978788461,0.323,86289.0,86280.0,0.03281]
[1763978789832,0.54511705,86290.0,86273.0,0.01674]
[1763978790029,0.02174528,86289.0,86273.0,0.01674]
[1763978790231,0.54511705,86290.0,86273.0,0.01674]
[1763978790432,0.54511705,86290.0,86277.0,0.03281]
[1763978791231,0.54511705,86290.0,86278.0,0.03281]
[1763978792945,0.54511705,86290.0,86273.0,0.01674]
[1763978793145,0.54511705,86290.0,86289.0,0.02102]
[1763978793348,0.323,86298.0,86289.0,0.05383]
[1763978793696,0.02174728,86297.0,86289.0,0.05383]
[1763978793822,0.323,86298.0,86289.0,0.05383]
[1763978793823,0.02174728,86296.0,86289.0,0.05383]
[1763978794024,0.02174728,86295.0,86289.0,0.05383]
[1763978794262,0.02174728,86294.0,86289.0,0.05383]
[1763978794442,0.323,86298.0,86289.0,0.05383]
[1763978794678,0.02175009,86297.0,86289.0,0.05383]
[1763978794880,0.02175009,86296.0,86289.0,0.05383]
[1763978795024,0.02175009,86295.0,86289.0,0.02102]
[1763978795226,0.02175325,86294.0,86289.0,0.02102]
[1763978795423,0.0812994,86297.0,86277.0,0.03235]
[1763978795646,0.91422919,86289.0,86277.0,0.03235]
[1763978796862,0.91422919,86289.0,86273.0,0.01674]
[1763978797423,0.91422919,86289.0,86277.0,0.03235]
[1763978797560,0.91422919,86289.0,86273.0,0.04909]
[1763978799592,0.91422919,86289.0,86273.0,0.01674]
[1763978799791,0.91422919,86283.0,86273.0,0.01674]
[1763978800190,0.91422919,86283.0,86273.0,0.04909]
[1763978800590,0.91422919,86283.0,86274.0,0.03235]
[1763978801007,0.91422919,86283.0,86282.0,0.02016]